Cogmind - Beta 13 @@@ ROGUE MODE // 2024.04.09 @ 20:19:12 Player: TurnLeft25 Result: Destroyed by B-75 Beast with Heavy Machine Gun Performance ------------- Evolutions (4) 2000 Regions Visited (9) 1800 Robots Destroyed (109) 545 Value Destroyed (3803) 3803 Prototype IDs (5) 100 Alien Tech Used (0) 0 Bonus (148) 148 TOTAL SCORE: 8396 Bonus ------- High Alert Combat Kills 148 Cogmind --------- Core Integrity 0/850 Matter 300/300 Energy 100/100 System Corruption 2% Temperature Cool (6) Movement Core (350) Ox6 Location -6/Extension Parts ------- > --- POWER (2) -------- (None) > --- PROPULSION (3) --- (None) > --- UTILITY (7) ------ Large Storage Unit Advanced Targeting Computer > --- WEAPON (3) ------- (None) > --- INVENTORY (15) --- Carbon-fiber Leg Advanced Heat Sink Hacking Suite Hacking Suite System Shield Heavy Laser Heavy Machine Gun Heavy Machine Gun Heavy Machine Gun Heavy Machine Gun Heavy Machine Gun Advanced Assault Cannon Heavy Missile Launcher Peak State ------------ > --- POWER ------------ Improved Deuterium Engine Light Angular Momentum Engine > --- PROPULSION ------- Carbon-fiber Leg Carbon-fiber Leg Carbon-fiber Leg > --- UTILITY ---------- Improved Heat Sink Improved Heat Sink Advanced Heat Sink Large Storage Unit Advanced Targeting Computer Advanced Targeting Computer Core Analyzer > --- WEAPON ----------- Gatling Laser Advanced Assault Cannon Advanced Assault Cannon > --- INVENTORY -------- Light Nuclear Core Carbon-fiber Leg Advanced Heat Sink Hacking Suite Hacking Suite System Shield Heavy Laser Heavy Machine Gun Heavy Machine Gun Heavy Machine Gun Heavy Machine Gun Advanced Assault Cannon Heavy Missile Launcher [Rating: 57] Favorites ----------- Power Light Ion Engine Engine Light Ion Engine Power Core Nuclear Core Propulsion Light Treads Treads Light Treads Leg Carbon-fiber Leg Utility Advanced Targeting Computer Device Cooling System Storage Medium Storage Unit Processor Advanced Targeting Computer Protection Hardened Medium Armor Plating Weapon Assault Cannon Energy Gun Gatling Laser Energy Cannon Improved EM Pulse Cannon Ballistic Gun Assault Rifle Ballistic Cannon Assault Cannon Build | -11 -10 -10 -9 -8 -7 -7 -7 -6 -6 ------- Run | Yrd Mat Min Mat Mat Fac Low Low Fac Ext Slots Evolved 8 | . . . 2 2 2 . . 2 . Power 1 | . . . . . . . . 1 . Propulsion 1 | . . . . . 1 . . . . Utility 5 | . . . 1 2 1 . . 1 . Weapon 1 | . . . 1 . . . . . . Parts Attached 74 | 6 2 1 12 13 11 5 5 3 16 Power 11 | 1 . . 2 2 1 1 . 1 3 Engine 9 | 1 . . 2 2 . 1 . 1 2 Core 2 | . . . . . 1 . . . 1 Reactor . | . . . . . . . . . . Propulsion 18 | 2 . 1 3 3 1 1 1 1 5 Treads 14 | 2 . 1 3 3 1 1 1 1 1 Leg 4 | . . . . . . . . . 4 Wheel . | . . . . . . . . . . Hover . | . . . . . . . . . . Flight . | . . . . . . . . . . Utility 27 | 1 2 . 3 7 4 2 1 1 6 Device 6 | . . . . 1 . 1 . . 4 Storage 4 | 1 1 . . 1 . . . . 1 Processor 3 | . . . . 1 . . . 1 1 Hackware . | . . . . . . . . . . Protection 14 | . 1 . 3 4 4 1 1 . . Artifact . | . . . . . . . . . . Weapon 18 | 2 . . 4 1 5 1 3 . 2 Energy Gun 2 | . . . 1 . . . . . 1 Energy Cannon 1 | . . . . . 1 . . . . Ballistic Gun 2 | 2 . . . . . . . . . Ballistic Cannon 13 | . . . 3 1 4 1 3 . 1 Launcher . | . . . . . . . . . . Special Weapon . | . . . . . . . . . . Impact Weapon . | . . . . . . . . . . Slashing Weapon . | . . . . . . . . . . Piercing Weapon . | . . . . . . . . . . Special Melee Weapon . | . . . . . . . . . . Unidentified Prototypes 1 | . . . 1 . . . . . . Parts Lost 38 | . . 1 2 1 4 4 1 1 24 Power 7 | . . . 1 . . 1 . 1 4 Propulsion 10 | . . 1 . . . 1 1 . 7 Utility 14 | . . . . 1 2 2 . . 9 Weapon 7 | . . . 1 . 2 . . . 4 Highest Loss Streak 15 | . . 1 1 1 2 3 1 1 15 To Critical Strikes . | . . . . . . . . . . Average Slot Usage (%) 96 | . 94 100 95 99 97 99 94 92 90 Engine 7 | . 14 14 10 9 1 4 7 5 10 Core 1 | . . . . . 5 2 . . . Treads 20 | . 28 28 22 18 23 22 17 20 8 Leg 1 | . . . . . . . . . 7 Device 8 | . . . . 9 7 12 15 13 16 Storage 8 | . 14 14 11 9 7 7 7 6 6 Processor 6 | . . . . 4 7 7 7 13 16 Protection 16 | . 9 14 22 21 21 17 15 13 4 Ballistic Gun 5 | . 28 28 7 . . . . . . Ballistic Cannon 17 | . . . 16 27 16 23 23 20 15 Naked Turns . | . . . . . . . . . . Heaviest Build 72 | 12 18 18 35 52 52 52 49 52 72 Greatest Support 73 | 40 40 40 40 40 60 60 68 70 73 Greatest Overweight (x) 13 | 1 . . . 1 . 1 1 . 13 Average Overweight (x) . | . . . . . . . . . . Largest Inventory Capacity 15 | 8 10 10 10 10 10 10 10 10 15 Average Capacity 10 | 7 8 10 10 10 10 10 10 10 14 Most Carried 14 | 6 9 10 10 10 10 10 10 10 14 Average Carried 9 | 2 5 9 9 9 9 8 9 9 11 Final Capacity 15 | 8 10 10 10 10 10 10 10 10 15 Final Carried 13 | 1 9 9 10 10 9 10 10 10 13 Class Distribution -------------------- 56% | Tank 21% | Mutant 9% | Derelict-Gunner 6% | Scavenger-Gunner 3% | Scavenger-Tank Dominant Class ---------------- Mutant | -10/Materials Mutant | -10/Mines Tank | -9/Materials Tank | -8/Materials Tank | -7/Factory Tank | -7/Lower Caves Tank | -7/Lower Caves Derelict-Gunner | -6/Factory Scavenger-Gunner | -6/Extension Resources | -11 -10 -10 -9 -8 -7 -7 -7 -6 -6 ----------- Run | Yrd Mat Min Mat Mat Fac Low Low Fac Ext Matter Collected 3437 | 231 169 52 476 557 698 368 127 37 722 Remotely . | . . . . . . . . . . Salvage Created 2909 | . 342 . 434 491 645 250 88 73 586 Parts 193 | . 32 . 47 26 44 16 3 3 22 Haulers Intercepted . | . . . . . . . . . . Recyclers Shooed 4 | . . . 1 2 . . . . 1 Parts Field Recycled . | . . . . . . . . . . Retrieved Matter . | . . . . . . . . . . Parts Self-Destructed 17 | . . . . . . 14 3 . . Prevented . | . . . . . . . . . . Kills | -11 -10 -10 -9 -8 -7 -7 -7 -6 -6 ------- Run | Yrd Mat Min Mat Mat Fac Low Low Fac Ext Combat Hostiles Destroyed 92 | . 11 . 14 13 20 11 3 2 18 Guns 20 | . 11 . 5 . . . . . 4 Cannons 69 | . . . 8 13 19 11 3 1 14 AOE 2 | . . . . . 1 . . 1 . Classes Destroyed 11 | . 3 . 4 . 2 . . . 2 Worker 6 | . . . 1 3 2 . . . . Builder 4 | . . . 3 1 . . . . . Operator 1 | . . . . . 1 . . . . Watcher 6 | . 2 . 2 1 1 . . . . Swarmer 31 | . 6 . 7 . 7 6 1 . 4 Grunt 40 | . 5 . 3 10 9 4 1 . 8 Brawler 2 | . . . 1 1 . . . . . Duelist 1 | . . . . . . . . . 1 Sentry 14 | . . . 3 2 2 1 1 2 3 Hunter 1 | . . . . . . . . . 1 Programmer 2 | . . . . . 2 . . . . Savage 1 | . . . . . . . . . 1 Best Kill Streak 9 | . 4 . 4 8 9 7 3 1 7 Combat Bots Only 8 | . 3 . 4 4 8 7 3 1 7 Max Kills in Single Turn 3 | . 1 . 3 2 2 2 1 1 2 Gunslinging . | . . . . . . . . . . Exploded 1 | . . . . . 1 . . 1 . Melee . | . . . . . . . . . . Uniques/NPCs Destroyed . | . . . . . . . . . . Combat | -11 -10 -10 -9 -8 -7 -7 -7 -6 -6 -------- Run | Yrd Mat Min Mat Mat Fac Low Low Fac Ext Hostile Shots Fired 817 | . 60 . 97 51 141 70 32 18 348 Missed 273 | . 12 . 19 19 49 20 13 5 136 Damage Taken 6934 | . 473 38 746 471 1196 698 201 274 2837 Core 1210 | . 80 8 72 81 62 22 23 22 840 Absorbed by Shields . | . . . . . . . . . . Redirected to Shielding 262 | . 28 7 13 . 179 35 . . . Ignored by Resistances 144 | . . . 19 58 67 . . . . Regen/Repaired (Parts) 343 | . . . . . 343 . . . . Core Remaining (%) 83 | 100 . 64 82 85 . . 84 . . Volleys Fired 224 | . 29 . 47 34 46 16 7 3 42 Largest 3 | . 2 . 3 3 3 3 3 3 3 Hottest 157 | . 40 . 133 132 157 132 132 144 144 Shots Fired 574 | . 58 . 106 102 128 48 21 9 102 Gun 106 | . 58 . 36 . . . . . 12 Cannon 468 | . . . 70 102 128 48 21 9 90 Launcher . | . . . . . . . . . . Special . | . . . . . . . . . . Kinetic 518 | . 58 . 94 102 96 48 21 9 90 Thermal 12 | . . . . . . . . . 12 Explosive . | . . . . . . . . . . Electromagnetic 44 | . . . 12 . 32 . . . . Robot Hit Streak 31 | . 7 . 8 7 24 13 4 13 31 Robot Miss Streak 11 | . 3 . 5 11 6 5 6 . 6 Penetration Max . | . . . . . . . . . . Secondary Targets 3 | . 3 . . . . . . . . Max Gunslinging Chain 1 | . 1 . . . . . . . . Shots Hit Robots 334 | . 36 . 53 51 88 26 10 9 61 Core Hits 230 | . 18 . 26 45 62 27 5 3 44 Critical Kills . | . . . . . . . . . . Critical Parts Destroyed . | . . . . . . . . . . Critical Strikes 7 | . . . 1 1 1 . . 1 3 Blast 6 | . . . 1 1 . . . 1 3 Corrupt 1 | . . . . . 1 . . . . Melee Attacks . | . . . . . . . . . . Impact . | . . . . . . . . . . Slashing . | . . . . . . . . . . Piercing . | . . . . . . . . . . Sneak Attacks . | . . . . . . . . . . Combat Hostiles . | . . . . . . . . . . Follow-up Attacks . | . . . . . . . . . . Damage Inflicted 8356 | . 480 . 1168 1399 2284 712 209 279 1825 Guns 1255 | . 476 . 391 . . . . . 388 Cannons 6897 | . . . 777 1394 2181 712 209 202 1422 Explosions 175 | . . . . . 98 . . 77 . Melee . | . . . . . . . . . . Ramming 29 | . 4 . . 5 5 . . . 15 Kinetic 6952 | . 476 . 975 1394 1562 712 209 202 1422 Thermal 563 | . . . . . 98 . . 77 388 Explosive . | . . . . . . . . . . Electromagnetic 812 | . . . 193 . 619 . . . . Impact . | . . . . . . . . . . Slashing . | . . . . . . . . . . Piercing . | . . . . . . . . . . Highest Corruption 2 | . . . 1 . . . . . 2 Average Corruption 1 | . . . 1 . . . . . 1 Corruption Purged . | . . . . . . . . . . Corruption Blocked . | . . . . . . . . . . Effects 6 | . . . 1 . . . . . 5 Message Errors 3 | . . . 1 . . . . . 2 Matter Fused 1 | . . . . . . . . . 1 Energy Discharges 1 | . . . . . . . . . 1 Alerts 1 | . . . . . . . . . 1 Overload Shots . | . . . . . . . . . . Overflow Damage 95 | . . . 17 4 7 4 20 43 . Projectiles 52 | . . . 17 4 7 4 20 . . Explosions 43 | . . . . . . . . 43 . Melee . | . . . . . . . . . . Knockbacks 61 | . . . 8 23 11 4 3 . 12 Impact . | . . . . . . . . . . Kinetic 59 | . . . 7 23 10 4 3 . 12 Secondary 2 | . . . 1 . 1 . . . . Self-Inflicted Damage 391 | . 59 . . . 151 . . 181 . Shots 8 | . 3 . . . 2 . . 3 . Rammed 4 | . 1 . . 1 1 . . . 1 Targets Rammed 9 | . 1 . . 1 1 . . . 6 Kicked 5 | . . . . . . . . . 5 Crushed . | . . . . . . . . . . Highest Temperature 408 | . 5 . 408 141 211 134 81 36 340 Average Temperature 92 | . 5 . 147 45 64 51 32 24 112 Received Heat Transfer 1938 | . 54 . 153 279 297 258 54 24 819 Effects 8 | . . . 6 . . . . . 2 Shutdowns 1 | . . . 1 . . . . . . Energy Bleed 1 | . . . 1 . . . . . . Interference 6 | . . . 4 . . . . . 2 Siege Activations . | . . . . . . . . . . Robots Corrupted . | . . . . . . . . . . Combat Hostiles . | . . . . . . . . . . Parts Fried 5 | . . . 1 . 4 . . . . Impact Corruptions 1 | . . . 1 . . . . . . Robots Melted . | . . . . . . . . . . Combat Hostiles . | . . . . . . . . . . Parts Melted . | . . . . . . . . . . Heat Transferred 1025 | . . . . . 100 . . 50 875 Parts Sabotaged . | . . . . . . . . . . Parts Stolen . | . . . . . . . . . . Parts Stripped . | . . . . . . . . . . Power Chain Reactions 2 | . 2 . . . . . . . . Alert | -11 -10 -10 -9 -8 -7 -7 -7 -6 -6 ------- Run | Yrd Mat Min Mat Mat Fac Low Low Fac Ext Peak Influence 578 | . 277 57 300 427 578 . . 156 493 Initial 150 | . . 57 18 118 150 . . . 76 Average 213 | . 116 56 137 292 317 . . 64 274 Maximum Alert Level 2 | . 1 . 1 2 2 . . . 2 Low Security (%) 48 | 100 89 100 79 7 25 . . 100 22 Level 1 41 | . 10 . 20 82 45 . . . 65 Level 2 9 | . . . . 9 29 . . . 11 Level 3 . | . . . . . . . . . . Level 4 . | . . . . . . . . . . Level 5 . | . . . . . . . . . . High Security . | . . . . . . . . . . Max Security . | . . . . . . . . . . Squads Dispatched 16 | . 1 . . 1 10 . . . 4 Investigation 8 | . 1 . . . 3 . . . 4 Extermination 2 | . . . . . 2 . . . . Reinforcement 3 | . . . . 1 2 . . . . Assault . | . . . . . . . . . . Garrison 3 | . . . . . 3 . . . . Intercept . | . . . . . . . . . . Searches Triggered . | . . . . . . . . . . Construction Impeded . | . . . . . . . . . . Haulers Reinforced . | . . . . . . . . . . Active Scanning Responses . | . . . . . . . . . . Cargo Convoy Interrupts . | . . . . . . . . . . Stealth | -11 -10 -10 -9 -8 -7 -7 -7 -6 -6 --------- Run | Yrd Mat Min Mat Mat Fac Low Low Fac Ext Distress Signals 3 | . 1 . . 2 . . . . . Communications Jammed . | . . . . . . . . . . Distress Signals . | . . . . . . . . . . Times Spotted 115 | . 15 . 20 15 25 11 3 2 24 Peak Tracking Total 6 | . 4 . 4 4 5 6 3 2 6 Tactical Retreats 2 | . . . . 1 . . . . 1 Traps | -11 -10 -10 -9 -8 -7 -7 -7 -6 -6 ------- Run | Yrd Mat Min Mat Mat Fac Low Low Fac Ext Traps Triggered 4 | . 1 . 1 . 1 . . . 1 Indirectly . | . . . . . . . . . . Trap Hack Attempts . | . . . . . . . . . . Triggered . | . . . . . . . . . . Disarmed . | . . . . . . . . . . Reprogrammed . | . . . . . . . . . . Reused . | . . . . . . . . . . Traps Extracted . | . . . . . . . . . . Installed . | . . . . . . . . . . Triggered 1 | . . . . . . 1 . . . Machines | -11 -10 -10 -9 -8 -7 -7 -7 -6 -6 ---------- Run | Yrd Mat Min Mat Mat Fac Low Low Fac Ext Machines Disabled 17 | . 2 . 1 1 5 2 . 4 2 Max in Single Turn 4 | . 1 . 1 1 4 1 . 4 1 Machines Repaired . | . . . . . . . . . . Machines Dismantled . | . . . . . . . . . . Machines Sabotaged . | . . . . . . . . . . Overloaded Fab Kills . | . . . . . . . . . . Hacking | -11 -10 -10 -9 -8 -7 -7 -7 -6 -6 --------- Run | Yrd Mat Min Mat Mat Fac Low Low Fac Ext Machines Accessed 23 | . 5 1 . 2 7 1 1 . 6 Terminals 19 | . 5 . . 2 5 1 . . 6 Fabricators . | . . . . . . . . . . Repair Stations 2 | . . . . . 2 . . . . Recycling Units . | . . . . . . . . . . Scanalyzers . | . . . . . . . . . . Garrison Access . | . . . . . . . . . . Total Hacks 61 | . 12 1 . 9 17 6 1 . 15 Successful 32 | . 6 1 . 7 9 6 1 . 2 Failed 29 | . 6 . . 2 8 . . . 13 Catastrophic 7 | . 1 . . 1 1 . . . 4 Database Lockouts . | . . . . . . . . . . Manual . | . . . . . . . . . . Terminals 52 | . 12 . . 9 10 6 . . 15 Fabricators . | . . . . . . . . . . Repair Stations 7 | . . . . . 7 . . . . Recycling Units . | . . . . . . . . . . Scanalyzers . | . . . . . . . . . . Garrison Access . | . . . . . . . . . . Terminal Hacks 27 | . 6 1 . 7 4 6 1 . 2 Record 9 | . 2 . . 1 . 6 . . . Prototype ID Bank 2 | . . . . 1 1 . . . . Open Door 3 | . . 1 . . . . 1 . 1 Open DSF 1 | . . . . . 1 . . . . Branch Access Points 3 | . 1 . . 1 . . . . 1 Emergency Access Points 1 | . . . . 1 . . . . . Terminal Index 2 | . . . . 1 1 . . . . Recycling Unit Index 1 | . 1 . . . . . . . . Dispatch Records 1 | . . . . 1 . . . . . Maintenance Status 1 | . 1 . . . . . . . . Patrol Status 1 | . . . . 1 . . . . . Investigation Status 1 | . 1 . . . . . . . . Recall Reinforcements 1 | . . . . . 1 . . . . Fabricator Hacks . | . . . . . . . . . . Repair Station Hacks 5 | . . . . . 5 . . . . Scan Component 3 | . . . . . 3 . . . . Repair 2 | . . . . . 2 . . . . Recycling Unit Hacks . | . . . . . . . . . . Scanalyzer . | . . . . . . . . . . Garrison Access Hacks . | . . . . . . . . . . Unauthorized Hacks . | . . . . . . . . . . Terminals . | . . . . . . . . . . Fabricators . | . . . . . . . . . . Repair Stations . | . . . . . . . . . . Recycling Units . | . . . . . . . . . . Scanalyzers . | . . . . . . . . . . Garrison Access . | . . . . . . . . . . Data Cores Recovered . | . . . . . . . . . . Used . | . . . . . . . . . . Hacking Detections 20 | . 5 . . 2 6 1 . . 6 Full Trace Events 8 | . 1 . . . 2 1 . . 4 Feedback Events 2 | . . . . . . . . . 2 Corruption 2 | . . . . . . . . . 2 Feedback Blocked . | . . . . . . . . . . Robot Schematics Acquired . | . . . . . . . . . . Robots Built . | . . . . . . . . . . Authchips . | . . . . . . . . . . Time . | . . . . . . . . . . Total Robot Build Rating . | . . . . . . . . . . Part Schematics Acquired . | . . . . . . . . . . Parts Built . | . . . . . . . . . . Authchips . | . . . . . . . . . . Time . | . . . . . . . . . . Total Part Build Rating . | . . . . . . . . . . Parts Repaired 2 | . . . . . 2 . . . . Time 76 | . . . . . 76 . . . . Parts Recycled . | . . . . . . . . . . Recycled Matter . | . . . . . . . . . . Retrieved Matter . | . . . . . . . . . . Retrieved Components . | . . . . . . . . . . Parts Scanalyzed . | . . . . . . . . . . Part Schematics Acquired . | . . . . . . . . . . Parts Damaged . | . . . . . . . . . . Bothacking | -11 -10 -10 -9 -8 -7 -7 -7 -6 -6 ------------ Run | Yrd Mat Min Mat Mat Fac Low Low Fac Ext Used RIF Installer . | . . . . . . . . . . Robots Hacked . | . . . . . . . . . . Non-combat . | . . . . . . . . . . Combat . | . . . . . . . . . . Robot Hacks Applied . | . . . . . . . . . . Relay Couplers Released . | . . . . . . . . . . Fabnet Peak Effective % . | . . . . . . . . . . Robots Rewired . | . . . . . . . . . . Allies Hacked . | . . . . . . . . . . Hacks Repelled . | . . . . . . . . . . Allies | -11 -10 -10 -9 -8 -7 -7 -7 -6 -6 -------- Run | Yrd Mat Min Mat Mat Fac Low Low Fac Ext Total Allies 1 | . . . . . . . . . 1 Largest Group 1 | . . . . . . . . . 1 Highest-Rated Group 31 | . . . . . . . . . 31 Highest-Rated Ally 31 | . . . . . . . . . 31 Total Orders . | . . . . . . . . . . Ally Attacks 3 | . . . . . . . . . 3 Total Damage 47 | . . . . . . . . . 47 Kills . | . . . . . . . . . . Allies Corrupted . | . . . . . . . . . . Allies Melted . | . . . . . . . . . . Intel | -11 -10 -10 -9 -8 -7 -7 -7 -6 -6 ------- Run | Yrd Mat Min Mat Mat Fac Low Low Fac Ext Robot Analysis Total . | . . . . . . . . . . Derelict Logs Recovered 3 | . . 1 . . . 1 1 . . Drone Launches . | . . . . . . . . . . Drone Recoveries . | . . . . . . . . . . Exploration | -11 -10 -10 -9 -8 -7 -7 -7 -6 -6 ------------- Run | Yrd Mat Min Mat Mat Fac Low Low Fac Ext Turns Passed 5555 | 60 529 283 641 762 863 991 421 260 745 Spaces Moved 2679 | 41 268 176 291 275 415 578 184 157 294 Core 25 | 23 . . . . . . . . 2 Treads 2512 | 18 268 176 291 275 415 578 184 157 150 Legs 142 | . . . . . . . . . 142 Wheels . | . . . . . . . . . . Hover . | . . . . . . . . . . Flight . | . . . . . . . . . . Fastest Speed 50 | 50 160 160 160 160 160 160 160 155 120 Average Speed 172 | 104 160 160 160 226 160 160 211 155 185 Slowest Speed 700 | 160 160 160 160 240 160 240 240 160 700 Overloaded Moves . | . . . . . . . . . . Propulsion Burnouts . | . . . . . . . . . . Robots Hopped . | . . . . . . . . . . Cave-ins Triggered . | . . . . . . . . . . Exploration Rate (%) 31 | 3 53 52 28 27 11 71 28 5 36 Regions Visited 9 Branch Regions 4 Pre-discovered Areas 2 | . . 2 . . . . . . . Known Exits Taken 2 | . 1 . . . . . 1 . . Unknown Exits Taken 7 | 1 . 1 1 1 1 1 . 1 . Scrap Searched 8 | . . 1 . . . 6 1 . . Spaces Dug . | . . . . . . . . . . Terrain Destroyed 108 | . 3 . 20 11 31 . . 30 13 Melee . | . . . . . . . . . . Projectile 45 | . . . 20 11 1 . . . 13 AOE 63 | . 3 . . . 30 . . 30 . Terrain Rammed . | . . . . . . . . . . Walls Destroyed . | . . . . . . . . . . Machines Disabled . | . . . . . . . . . . Actions | -11 -10 -10 -9 -8 -7 -7 -7 -6 -6 --------- Run | Yrd Mat Min Mat Mat Fac Low Low Fac Ext Total 3164 | 58 310 178 375 340 517 609 203 167 407 Wait 68 | 6 . 1 1 . 27 3 2 . 28 Move 2670 | 40 267 175 290 274 414 577 183 156 294 Hop . | . . . . . . . . . . Pick Up 69 | 6 10 1 11 6 11 6 1 3 14 Fast Attach 11 | 1 . . 4 3 . . 1 1 1 Attach 38 | 5 1 1 3 2 10 4 . 1 11 Detach 2 | . . . . . 2 . . . . Swap 25 | . 1 . 5 8 1 1 4 1 4 Drop 43 | . 1 . 14 12 5 2 5 2 2 Fire 224 | . 29 . 47 34 46 16 7 3 42 Melee . | . . . . . . . . . . Ram 1 | . . . . . . . . . 1 Kick 5 | . . . . . . . . . 5 Crush 3 | . 1 . . 1 1 . . . . Escape Stasis 5 | . . . . . . . . . 5 Rewire . | . . . . . . . . . . Trap . | . . . . . . . . . . Miscellaneous . | . . . . . . . . . . Route ------- -11/Scrapyard -10/Materials (discovered 2 exits: [*Mat] / *Min) -10/Mines -9/Materials -8/Materials (discovered 2 exits: *Fac / Sto) -7/Factory -7/Lower Caves -7/Lower Caves -6/Factory (discovered 4 exits: Fac x3 / *Ext) -6/Extension (discovered 1 exit: Cet) History --------- Turn | Location | Event 2 | -11/Scrapyard | Met Revision 17 9 | -11/Scrapyard | Discovered new exit (range 14) 61 | -11/Scrapyard | Entered Materials 301 | -10/Materials | Build established: Mutant 437 | -10/Materials | Discovered new exit (range 9) 443 | -10/Materials | Identified exit to Mines 590 | -10/Materials | Entered Mines 621 | -10/Mines | Learned location of Zion (-7) 629 | -10/Mines | Met a Derelict bent on vengeance 702 | -10/Mines | Assembled infested the area 707 | -10/Mines | Assisted by a Guerilla fighting off Assembled 804 | -10/Mines | Learned location of Storage (-8) 846 | -10/Mines | Discovered new exit (range 7) 860 | -10/Mines | Met a Derelict who couldn't figure out how to use a Trap Extractor 873 | -10/Mines | Entered Materials 873 | -9/Materials | Evolved 2 slots: Utility x1, Weapon x1 1500 | -9/Materials | Discovered new exit (range 10) 1514 | -9/Materials | Entered another Materials area 1514 | -8/Materials | Evolved 2 slots: Utility x2 1867 | -8/Materials | Identified exit to Storage 1905 | -8/Materials | Build established: Tank 2237 | -8/Materials | Discovered new exit (range 15) 2276 | -8/Materials | Entered Factory 2276 | -7/Factory | Evolved 2 slots: Propulsion x1, Utility x1 2632 | -7/Factory | Garrison activated, responded to threat 2708 | -7/Factory | Destroyed 8 combat bots 2911 | -7/Factory | Repaired Hrd. Medium Armor Plating 2953 | -7/Factory | Repaired Flak Cannon 3109 | -7/Factory | Discovered new exit (range 11) 3139 | -7/Factory | Entered Lower Caves 3159 | -7/Lower Caves | Learned Factory trap positions 3188 | -7/Lower Caves | Encountered a Warlord checkpoint 3443 | -7/Lower Caves | Attracted the attention of an 0b10 base 3476 | -7/Lower Caves | Lost 3 parts (1p2u) 3483 | -7/Lower Caves | Destroyed 7 combat bots 3514 | -7/Lower Caves | Learned location of 1 exit from Research 3704 | -7/Lower Caves | Attracted the attention of an 0b10 checkpoint 4084 | -7/Lower Caves | Discovered new exit (range 11) 4114 | -7/Lower Caves | Spotted B-75 Beast 4130 | -7/Lower Caves | Entered another Lower Caves area 4131 | -7/Lower Caves | Identified exit to Factory 4134 | -7/Lower Caves | Attracted the attention of an 0b10 checkpoint 4551 | -7/Lower Caves | Entered Factory 4551 | -6/Factory | Evolved 2 slots: Power x1, Utility x1 4552 | -6/Factory | Identified exit to Factory 4553 | -6/Factory | Loaded intel: 83 trap records 4788 | -6/Factory | Discovered new exit (range 15) 4811 | -6/Factory | Entered Extension 4828 | -6/Extension | Build established: Derelict-Gunner 4954 | -6/Extension | Identified exit to Cetus 5088 | -6/Extension | Lost 3 parts (1n2u) 5172 | -6/Extension | Destroyed 7 combat bots 5244 | -6/Extension | Lost 6 parts (1p2n2u1w) 5488 | -6/Extension | Rescued a captive Derelict 5512 | -6/Extension | Spotted B-75 Beast 5529 | -6/Extension | Spotted B-75 Beast 5547 | -6/Extension | Core integrity fell below 50% 5555 | -6/Extension | Core integrity fell below 20% 5556 | -6/Extension | Destroyed by B-75 Beast with Heavy Machine Gun Last Messages --------------- 05533_ Adv. Assault Cannon destroyed. 05533_ Kicked Y-54 Guardian out of the way. 05534_ Lgt. Nuclear Core destroyed. 05538_ Imp. Heat Sink destroyed. 05541_ Carbon-fiber Leg destroyed. 05541_ Adv. Assault Cannon destroyed. 05542_ Adv. Heat Sink destroyed. 05542_ Lgt. Angular Momentum Engine destroyed. 05542_ Machine disabled. 05548_ Carbon-fiber Leg destroyed. 05548_ Gatling Laser destroyed. 05548_ U-05 Engineer builds a Wall. 05550_ Kicked Y-54 Guardian. 05550_ Machine disabled. 05552_ Kicked Y-54 Guardian. 05552_ U-05 Engineer builds a Wall. 05553_ Core Analyzer destroyed. 05553_ Kicked Y-54 Guardian. 05554_ Carbon-fiber Leg destroyed. 05555_ Slammed into Y-54 Guardian. Map ----- +----------------------------------------------------+ | ^ #????????????????????????????????????? | | #????????????????????????????????????? | | ^ #????????????????????????????????????? | | = ####?????????????????????????????????? | | = #?????????????????????????????????? | | = #?????????????????????????????????? | | #?????????????????????????????????? | | #?????????????????????????????????? | | ##### #?????????????????????????????????? | | ????# #?????????????????????????????????? | | ????# #????????? ???????????????????????? | | ????#### #????????? ???????????????????????? | | ???????# #????????? ???????????????????????? | | ???????# #????????? ???????????????????????? | | ???????# #????????? ???????????????????????? | | ???????# #????????? ???????????????????????? | | ???????# #????????? ???????????????????????? | | ???????# ##### #????????# #??????????????????????? | | ???????# T#??# #????????# #??????????????????????? | | ???????# ##??# #????????# +??????????????????????? | | ???????# #???#%#????????# #??????????????????????? | | ???????###???# #????????# #??????????????????????? | | ?????????????#%#?###????# #??????????????????????? | | ?????????????# ###"###### #??????????????????????? | | ???????????### ### ;# ##;%###????????????????????? | | ???????????#""% %Y Y Y@ "#????????????????????? | | ???????????# " u % %%% #????????????????????? | | ???????????# #????????????????????? | | ???????????# #????????????????????? | | ???????????#R #????????????????????? | | ???????? ??????????????????? | | ??????? BB ???????????????? | | ??????? BB BB w ??????????????? | | ?????? BB ?????????????? | | ????? R ????????????? | | ?????####### #########????????????? | | ???????????# #????????????????????? | | ???????????# #????????????????????? | | ???????????# #????????????????????? | | ???????????# #????????????????????? | | ???????????######T#"""#######????????????????????? | | ?????????????????????????????????????????????????? | | ?????????????????????????????????????????????????? | | | | | | | | | | | | | | | +----------------------------------------------------+ Best States ------------- Heat Dissipation 84 Energy Generation 29 Energy Capacity 480 Matter Stores 300 Matter Capacity 300 Sight Range 16 Robot Scan Range 15 Terrain Scan Density 10 Armor Coverage 450 Resistance: TH 10 Resistance: EM 20 Power Shielding 33 Propulsion Shielding 66 Utility Shielding 66 Weapon Shielding 33 Evasion (%) 55 Targeting Accuracy 16 Core Analysis 6 Recoil Reduction 3 Item Schematics ----------------- None Robot Schematics ------------------ None Fabricated ------------ Nothing Alien Tech Used ----------------- None Achievements -------------- None Challenges ------------ None Game ------ Seed SurgeArmageddonBeamcaster Manual? 0 Play Time 00:46:27 Cumulative 13.2 hours Start 2024.04.09 @ 06:26:40 End 2024.04.09 @ 20:19:12 Sessions 3 Manual Loads 0 Difficulty Rogue Special Mode None Game No. 25 Rogue 25 Adventurer 0 Explorer 0 Win Type - Total 0 Types 0/0/0/0/0/0/0/0/0 Lore% 17 Gallery% 23 Achievement% 19 Wizard Run 0 Options --------- Layout 1 ASCII 0 Keyboard 0 Movement Mouse Keybinds 0 Fullscreen 1 Font 24/Smallcaps Map View 50x40 Zoom Use 0% Tactical HUD 1 Map Filters NONE Filters NONE Steam 1 RUN: 4e4db2d0-c64c-4d35-8df6-d51ccf596d1a